bitfinex/quotes_SOLUSD_20230112
["timestamp","ask_amount","ask_price","bid_price","bid_amount"]
[1673535161104,47.37,15.836,15.816,20.0]
[1673535161831,17.0,15.835,15.816,20.0]
[1673535162896,20.0,15.837,15.816,20.0]
[1673535163110,67.37,15.837,15.816,20.0]
[1673535164038,20.0,15.836,15.816,20.0]
[1673535164250,25.25,15.83,15.816,20.0]
[1673535164675,17.0,15.829,15.816,20.0]
[1673535166149,25.25,15.83,15.816,20.0]
[1673535167415,17.0,15.829,15.816,20.0]
[1673535168357,25.25,15.83,15.816,20.0]
[1673535168560,67.37,15.837,15.816,36.87131704]
[1673535169310,67.37,15.837,15.816,20.0]
[1673535169704,67.37,15.837,15.817,16.87131704]
[1673535169918,20.0,15.837,15.818,20.0]
[1673535170144,47.36,15.839,15.819,20.0]
[1673535171096,25.43,15.84,15.82,20.0]
[1673535171289,25.43,15.84,15.821,20.0]
[1673535171710,25.43,15.84,15.822,16.87131704]
[1673535171937,25.43,15.84,15.824,20.0]
[1673535172246,25.43,15.84,15.825,20.0]
[1673535172458,25.43,15.84,15.825,36.87131704]
[1673535172668,25.43,15.84,15.825,20.0]
[1673535173907,17.0,15.839,15.825,20.0]
[1673535174351,47.34,15.846,15.825,20.0]
[1673535174565,25.43,15.85,15.826,17.0]
[1673535174874,25.43,15.85,15.826,16.87131704]
[1673535174875,20.0,15.848,15.826,16.87131704]
[1673535175080,47.34,15.847,15.827,20.0]
[1673535175292,126.85,15.84,15.815,130.4645]
[1673535175505,47.36,15.839,15.815,130.4645]
[1673535175698,20.0,15.838,15.815,130.4645]
[1673535175905,64.37,15.837,15.815,130.4645]
[1673535176754,83.51496728,15.837,15.815,130.4645]
[1673535178243,25.23,15.83,15.815,130.4645]
[1673535178435,17.0,15.829,15.816,20.0]
[1673535178855,47.39,15.828,15.816,20.0]
[1673535179174,37.0,15.827,15.81,20.0]
[1673535179379,47.4,15.826,15.81,20.0]
[1673535179595,17.0,15.825,15.81,20.0]
[1673535179804,25.23,15.82,15.81,20.0]
[1673535180014,17.0,15.819,15.81,20.0]
[1673535180221,47.39,15.829,15.81,20.0]
[1673535180436,25.43,15.83,15.81,20.0]
[1673535181276,25.43,15.83,15.812,20.0]
[1673535181491,127.03,15.83,15.812,20.0]
[1673535181704,64.39,15.829,15.812,20.0]
[1673535182546,127.03,15.83,15.812,20.0]
[1673535182771,25.43,15.83,15.813,20.0]
[1673535182963,25.43,15.83,15.814,20.0]
[1673535184544,47.36,15.839,15.814,20.0]
[1673535184749,25.2,15.84,15.815,20.0]
[1673535185580,25.2,15.84,15.816,110.0168]
[1673535185791,25.2,15.84,15.818,20.0]
[1673535186019,17.0,15.839,15.819,20.0]
[1673535187382,19.14496728,15.838,15.81,20.0]
[1673535187581,47.37,15.837,15.81,20.0]
[1673535187796,126.85,15.83,15.81,20.0]
[1673535188006,47.39,15.829,15.81,20.0]
[1673535188210,64.39,15.829,15.81,20.0]
[1673535188733,64.39,15.829,15.814,20.0]
[1673535188952,25.35,15.82,15.801,20.0]
[1673535189164,126.81,15.82,15.801,20.0]
[1673535189368,64.42,15.819,15.801,20.0]
[1673535189791,64.42,15.819,15.797,20.0]
[1673535190114,58.28993456,15.818,15.797,20.0]
[1673535190301,64.43,15.817,15.795,25.314455]
[1673535190516,83.57496728,15.817,15.795,25.314455]
[1673535190738,19.14496728,15.816,15.795,25.314455]
[1673535190952,64.43,15.815,15.795,25.314455]
[1673535191141,126.83,15.81,15.795,25.314455]
[1673535191360,64.45,15.809,15.795,25.314455]
[1673535191777,25.23,15.8,15.787,20.0]
[1673535191998,17.0,15.799,15.787,20.0]
[1673535192633,17.0,15.799,15.787,45.339111]
[1673535193998,17.0,15.799,15.787,25.339111]
[1673535194408,36.14496728,15.799,15.787,25.339111]
[1673535194628,20.0,15.797,15.787,25.339111]
[1673535194935,64.49,15.796,15.787,25.339111]
[1673535195258,17.0,15.796,15.787,25.339111]
[1673535195492,47.49,15.795,15.787,25.339111]
[1673535195708,37.0,15.794,15.787,25.339111]
[1673535195894,47.5,15.793,15.787,25.339111]
[1673535196105,17.0,15.792,15.787,25.339111]
[1673535196326,47.5,15.791,15.787,25.339111]
[1673535196539,17.0,15.79,15.787,25.339111]
[1673535198019,17.0,15.79,15.773,20.0]
[1673535198229,67.51,15.789,15.774,1.09276965]
[1673535198441,86.65496728,15.789,15.774,1.09276965]
[1673535198628,20.0,15.788,15.774,1.09276965]
[1673535198843,67.52,15.787,15.774,1.09276965]
[1673535199163,25.28,15.78,15.774,1.09276965]
[1673535199393,127.07,15.78,15.774,1.09276965]
[1673535199909,17.0,15.779,15.774,1.09276965]
[1673535200125,17.0,15.779,15.767,25.364125]
[1673535200126,17.0,15.779,15.769,103.34783683]
[1673535200322,17.0,15.779,15.768,105.49117206]
[1673535201782,17.0,15.779,15.767,129.51394158]
[1673535202212,17.0,15.779,15.767,25.364125]
[1673535202429,127.07,15.78,15.767,25.364125]
[1673535202836,20.0,15.779,15.768,1.09318549]
[1673535203056,127.07,15.78,15.768,1.09318549]
[1673535203803,17.0,15.779,15.768,1.09318549]
[1673535204020,47.54,15.778,15.768,1.09318549]
[1673535204340,37.0,15.777,15.768,1.09318549]
[1673535204639,20.0,15.775,15.768,1.09318549]
[1673535204858,17.0,15.774,15.768,1.09318549]
[1673535205698,47.55,15.774,15.768,1.09311616]
[1673535205895,47.52,15.787,15.768,1.09311616]
[1673535206322,47.54,15.779,15.768,1.09311616]
[1673535206851,47.52,15.784,15.768,1.09311616]
[1673535207056,47.52,15.787,15.768,1.09311616]
[1673535207281,19.14496728,15.786,15.768,1.09311616]
[1673535207489,47.52,15.785,15.768,1.09311616]
[1673535208096,47.52,15.787,15.768,1.09311616]
[1673535208312,0.00498682,15.764,15.762,37.29316153]
[1673535208533,25.43,15.79,15.768,17.29316153]
[1673535209377,25.43,15.79,15.769,20.0]
[1673535209792,25.43,15.79,15.77,17.29316153]
[1673535210232,25.43,15.79,15.771,20.0]
[1673535210544,47.48,15.798,15.772,37.29316153]
[1673535210765,25.4,15.79,15.773,20.0]
[1673535211365,127.0,15.79,15.773,20.0]
[1673535211575,126.99,15.79,15.773,20.0]
[1673535212433,17.0,15.789,15.773,20.0]
[1673535213163,47.49,15.795,15.774,20.0]
[1673535213383,47.48,15.799,15.775,20.0]
[1673535213701,47.48,15.799,15.775,36.81076901]
[1673535214010,126.97,15.8,15.776,16.81076901]
[1673535214248,25.37,15.8,15.777,20.0]
[1673535214420,25.37,15.8,15.778,20.0]
[1673535214637,25.37,15.8,15.779,20.0]
[1673535215584,127.09,15.8,15.779,20.0]
[1673535215799,47.48,15.799,15.779,20.0]
[1673535216015,127.09,15.8,15.779,20.0]
[1673535217458,127.09,15.8,15.778,20.0]
[1673535217670,25.23,15.79,15.776,117.5718]
[1673535217880,25.23,15.79,15.773,20.0]
[1673535218108,25.23,15.79,15.761,107.85713259]
[1673535218109,47.51,15.789,15.766,114.3585]
[1673535218319,17.0,15.788,15.766,114.3585]
[1673535218951,17.0,15.788,15.767,20.0]
[1673535220317,25.25,15.78,15.768,25.356363]
[1673535220537,17.0,15.779,15.763,20.0]
[1673535221583,64.54,15.779,15.763,20.0]
[1673535221810,64.54,15.779,15.763,25.371502]
[1673535223887,64.54,15.779,15.764,20.0]
[1673535224099,47.54,15.779,15.764,20.0]
[1673535224424,126.84,15.78,15.764,20.0]
[1673535224848,47.54,15.779,15.764,20.0]
[1673535225175,126.84,15.78,15.764,20.0]
[1673535225498,25.54,15.78,15.765,20.0]
[1673535226313,25.54,15.78,15.764,40.0]
[1673535226529,25.54,15.78,15.764,20.0]
[1673535226734,47.54,15.779,15.764,20.0]
[1673535227356,17.0,15.778,15.764,20.0]
[1673535227564,47.55,15.777,15.764,20.0]
[1673535227777,25.35,15.77,15.763,25.371502]
[1673535228201,17.0,15.769,15.763,25.371502]
[1673535228845,25.35,15.77,15.763,25.371502]
[1673535229060,22.73,15.78,15.763,41.70956415]
[1673535229306,486.053,15.787,15.763,25.371502]
[1673535229490,20.0,15.785,15.763,25.371502]
[1673535229695,45.77,15.78,15.763,25.371502]
[1673535229911,47.54,15.779,15.763,25.371502]
[1673535230120,47.54,15.779,15.765,20.0]
[1673535230760,114.3,15.78,15.765,20.0]
[1673535231087,22.92,15.78,15.765,20.0]
[1673535232545,22.92,15.78,15.764,40.0]
[1673535234134,22.92,15.78,15.764,20.0]
[1673535234321,64.54,15.779,15.764,20.0]
[1673535234965,17.0,15.779,15.764,20.0]
[1673535235177,20.0,15.778,15.763,25.373936]
[1673535235387,64.55,15.777,15.763,25.373936]
[1673535235604,22.66,15.77,15.763,25.373936]
[1673535235791,17.0,15.769,15.763,25.373936]
[1673535236002,17.0,15.769,15.761,76.85713259]
[1673535236003,50.747872,15.762,15.761,76.85713259]
[1673535236642,26.274272,15.762,15.761,76.85713259]
[1673535236961,8.376972,15.762,15.761,76.85713259]
[1673535237472,0.006972,15.762,15.761,76.85713259]
[1673535240735,58.76551758,15.775,15.761,76.85713259]
[1673535241144,58.76551758,15.775,15.763,20.0]
[1673535241357,58.76551758,15.775,15.764,20.0]
[1673535241991,58.76551758,15.775,15.761,76.85713259]
[1673535242196,58.76551758,15.775,15.762,20.0]
[1673535243256,46.18191758,15.775,15.763,36.32979555]
[1673535243464,46.18191758,15.775,15.764,20.0]
[1673535245987,46.18191758,15.775,15.765,20.0]
[1673535246826,46.18191758,15.775,15.761,76.85713259]
[1673535247038,22.7,15.77,15.761,76.85713259]
[1673535247267,64.57,15.769,15.761,76.85713259]
[1673535247457,17.0,15.769,15.761,76.85713259]
[1673535247666,47.57,15.768,15.761,76.85713259]
[1673535247877,184.9,15.767,15.761,76.85713259]
[1673535248118,67.58,15.766,15.761,76.85713259]
[1673535248330,67.58,15.766,15.761,65.85713259]
[1673535248645,20.0,15.764,15.745,20.0]
[1673535248853,22.79,15.76,15.74,25.409073]
[1673535249068,20.0,15.758,15.74,25.409073]
[1673535249499,47.61,15.757,15.74,25.409073]
[1673535249694,22.87,15.75,15.74,25.409073]
[1673535250133,87.63,15.749,15.74,25.409073]
[1673535250448,17.0,15.748,15.74,25.409073]
[1673535250642,47.64,15.747,15.74,25.409073]
[1673535250856,17.0,15.746,15.74,25.409073]
[1673535252441,47.64,15.745,15.74,14.409073]
[1673535252844,66.78496728,15.745,15.74,14.409073]
[1673535253175,20.0,15.744,15.74,14.409073]
[1673535253390,47.65,15.743,15.74,14.409073]
[1673535253703,66.79496728,15.743,15.716,20.0]
[1673535253894,20.0,15.739,15.716,20.0]
[1673535254103,67.66,15.738,15.716,20.0]
[1673535254319,17.0,15.737,15.716,20.0]
[1673535254534,47.67,15.736,15.716,20.0]
[1673535254742,17.0,15.735,15.716,20.0]
[1673535255068,47.67,15.736,15.716,20.0]
[1673535255269,47.67,15.737,15.716,20.0]
[1673535255895,66.81496728,15.737,15.716,20.0]
[1673535256130,114.37,15.74,15.716,20.0]
[1673535256436,70.65,15.74,15.716,20.0]
[1673535256624,162.13,15.74,15.716,20.0]
[1673535256831,39.14496728,15.739,15.715,138.524095]
[1673535257040,22.79,15.73,15.715,138.524095]
[1673535257264,22.79,15.73,15.715,25.448595]
[1673535257999,64.69,15.729,15.715,25.448595]
[1673535258218,50.89719,15.714,15.71,0.53354179]
[1673535258835,17.0,15.713,15.71,0.53354179]
[1673535259486,17.0,15.713,15.701,25.469027]
[1673535259692,114.38,15.71,15.701,25.469027]
[1673535260219,47.75,15.709,15.701,25.469027]
[1673535260624,31.82337096,15.7,15.681,114.186]
[1673535260843,54.52337096,15.7,15.681,114.186]
[1673535261045,54.52337096,15.7,15.682,20.0]
[1673535261460,47.78,15.699,15.682,20.0]
[1673535261675,17.0,15.698,15.682,20.0]
[1673535262427,17.0,15.699,15.682,20.0]
[1673535262845,17.0,15.699,15.69,20.0]
[1673535263365,17.0,15.699,15.682,20.0]
[1673535263586,54.91337096,15.7,15.682,20.0]
[1673535263789,0.00337096,15.7,15.682,20.0]
[1673535264003,47.72,15.719,15.69,20.0]
[1673535264404,19.14496728,15.717,15.69,20.0]
[1673535264621,47.72,15.719,15.691,20.0]
[1673535264835,23.09,15.72,15.692,37.0]
[1673535265048,47.72,15.719,15.693,20.0]
[1673535265245,23.09,15.72,15.694,17.0]
[1673535265461,23.09,15.72,15.693,20.0]
[1673535265675,47.69,15.728,15.694,61.12982194]
[1673535265885,22.97,15.73,15.695,40.0]
[1673535265886,0.00719,15.714,15.695,40.0]
[1673535266097,0.00719,15.714,15.696,17.0]
[1673535266297,0.00719,15.714,15.697,20.0]
[1673535266507,19.15215728,15.714,15.696,44.12982194]
[1673535266722,22.83,15.71,15.695,20.0]
[1673535266939,0.00719,15.714,15.695,20.0]
[1673535267149,47.74,15.713,15.695,20.0]
[1673535267352,22.85,15.71,15.695,20.0]
[1673535267573,0.00719,15.714,15.695,20.0]
[1673535267784,22.97,15.73,15.697,20.0]
[1673535268205,19.14496728,15.733,15.698,62.06071373]
[1673535268397,47.68,15.732,15.697,20.0]
[1673535268611,47.66,15.738,15.698,74.85077329]
[1673535268821,47.66,15.739,15.699,69.29241396]
[1673535269054,47.66,15.739,15.7,8.429]
[1673535269248,47.66,15.739,15.701,20.0]
[1673535269459,66.80496728,15.739,15.703,204.9]
[1673535269661,47.63,15.749,15.705,184.9]
[1673535269875,47.63,15.749,15.71,114.35]
[1673535270086,66.77496728,15.749,15.711,45.423]
[1673535270296,66.77496728,15.749,15.711,84.07591271]
[1673535270515,47.63,15.749,15.711,268.97591271]
[1673535270735,22.87,15.75,15.714,20.0]
[1673535270932,47.63,15.749,15.715,143.0181]
[1673535271146,47.63,15.749,15.716,17.0]
[1673535271350,47.63,15.749,15.717,28.42]
[1673535271585,7.04148,15.748,15.718,17.0]
[1673535271791,7.04148,15.748,15.72,20.0]
[1673535272009,7.04148,15.748,15.721,64.71]
[1673535272207,7.04148,15.748,15.722,20.0]
[1673535272417,7.04148,15.748,15.724,20.0]
[1673535272611,7.04148,15.748,15.725,20.0]
[1673535272822,7.04148,15.748,15.726,20.0]
[1673535273032,7.04148,15.748,15.727,67.69]
[1673535273795,7.04148,15.748,15.728,20.0]
[1673535274104,7.04148,15.748,15.73,20.0]
[1673535274316,19.14496728,15.755,15.729,14.11912667]
[1673535274533,47.61,15.754,15.729,14.11912667]
[1673535275346,17.0,15.753,15.729,14.11912667]
[1673535275571,47.6,15.759,15.73,15.61781069]
[1673535275770,47.6,15.759,15.731,20.0]
[1673535275984,39.14496728,15.758,15.731,20.0]
[1673535276305,47.61,15.757,15.732,20.0]
[1673535276512,47.61,15.757,15.729,14.11912667]
[1673535277363,72.70633608,15.756,15.729,14.11912667]
[1673535277566,22.87,15.75,15.729,14.11912667]
[1673535277866,64.63,15.749,15.729,14.11912667]
[1673535278082,17.0,15.749,15.73,20.0]
[1673535278292,64.63,15.749,15.729,20.0]
[1673535278517,47.61,15.756,15.73,15.61781069]
[1673535278732,47.61,15.757,15.731,40.0]
[1673535279132,47.61,15.757,15.731,55.61781069]
[1673535279547,66.75496728,15.757,15.731,55.61781069]
[1673535279773,66.75496728,15.757,15.731,40.0]
[1673535280191,19.14496728,15.756,15.731,40.0]
[1673535280404,22.86,15.75,15.731,20.0]
[1673535280625,22.86,15.75,15.728,55.61781069]
[1673535280834,47.63,15.749,15.728,40.0]
[1673535281250,22.86,15.75,15.728,40.0]
[1673535281471,47.61,15.757,15.729,15.61781069]
[1673535281670,19.14496728,15.755,15.73,40.0]
[1673535281880,47.61,15.754,15.73,40.0]
[1673535282095,47.61,15.754,15.73,39.5]
[1673535282307,66.75496728,15.754,15.73,39.5]
[1673535282625,17.0,15.753,15.73,39.5]
[1673535282819,35.50387978,15.753,15.731,17.0]
[1673535283031,35.50387978,15.753,15.732,20.0]
[1673535283241,22.84,15.77,15.733,20.0]
[1673535283450,47.58,15.767,15.734,20.0]
[1673535283772,47.58,15.767,15.736,20.0]
[1673535284188,47.58,15.767,15.737,131.0233]
[1673535284401,47.58,15.767,15.737,146.64111069]
[1673535284705,47.58,15.767,15.739,20.0]
[1673535284926,47.58,15.767,15.74,20.0]
[1673535285137,47.58,15.767,15.74,35.61781069]
[1673535285356,47.58,15.767,15.741,15.61781069]
[1673535285555,47.57,15.769,15.743,20.0]
[1673535285763,47.55,15.774,15.744,20.0]
[1673535286084,47.55,15.774,15.744,35.61781069]
[1673535286296,19.14496728,15.773,15.745,31.23562138]
[1673535286616,47.56,15.772,15.747,20.0]
[1673535286833,47.55,15.774,15.747,20.0]
[1673535287038,22.7,15.77,15.748,20.0]
[1673535287232,47.57,15.769,15.746,20.0]
[1673535287657,17.0,15.768,15.747,20.0]
[1673535287860,47.57,15.769,15.748,20.0]
[1673535288094,47.56,15.771,15.748,20.0]
[1673535288303,66.70496728,15.771,15.748,20.0]
[1673535288505,47.55,15.774,15.748,20.0]
[1673535288710,47.55,15.774,15.749,20.0]
[1673535288919,47.55,15.774,15.75,20.0]
[1673535289156,47.55,15.774,15.751,20.0]
[1673535289667,46.18191758,15.775,15.752,17.0]
[1673535289875,46.18191758,15.775,15.752,37.0]
[1673535290090,46.18191758,15.775,15.753,2.602]
[1673535290406,46.18191758,15.775,15.754,7.01131]
[1673535290611,46.18191758,15.775,15.755,42.602]
[1673535291023,19.14496728,15.774,15.755,22.602]
[1673535291235,66.69496728,15.774,15.755,2.602]
[1673535291442,20.0,15.772,15.755,2.602]
[1673535291674,64.56,15.771,15.755,2.602]
[1673535291862,17.0,15.77,15.755,2.602]
[1673535292066,47.57,15.769,15.755,2.602]
[1673535292293,17.0,15.768,15.755,2.602]
[1673535292493,20.0,15.766,15.755,2.602]
[1673535292703,64.58,15.765,15.755,2.602]
[1673535292920,17.0,15.764,15.755,2.602]
[1673535293136,47.59,15.763,15.755,2.602]
[1673535293351,17.0,15.762,15.755,2.602]
[1673535293676,47.57,15.769,15.755,2.602]
[1673535293873,17.0,15.768,15.755,2.602]
[1673535294084,19.14496728,15.773,15.755,2.602]
[1673535294285,47.56,15.772,15.755,2.602]
[1673535294822,19.14496728,15.771,15.755,2.602]
[1673535295150,46.18191758,15.775,15.755,2.602]
[1673535295151,47.57,15.77,15.755,2.602]
[1673535295355,17.0,15.769,15.755,2.602]
[1673535296818,47.57,15.768,15.755,2.602]
[1673535297019,17.0,15.767,15.755,2.602]
[1673535297452,20.0,15.767,15.755,2.602]
[1673535297772,83.72496728,15.766,15.755,2.602]
[1673535297980,47.58,15.766,15.755,2.602]
[1673535298176,47.57,15.769,15.755,2.602]
[1673535298597,47.55,15.774,15.755,2.602]
[1673535299560,19.14496728,15.773,15.755,2.602]
[1673535299877,47.56,15.772,15.755,2.602]
[1673535300279,19.14496728,15.771,15.755,2.602]
[1673535300500,47.57,15.77,15.755,2.602]
[1673535300717,17.0,15.769,15.755,2.602]
[1673535300931,47.57,15.768,15.755,2.602]
[1673535301234,17.0,15.767,15.755,2.602]
[1673535301448,47.58,15.766,15.755,2.602]
[1673535301643,17.0,15.765,15.755,2.602]
[1673535302272,47.58,15.764,15.755,2.602]
[1673535302477,17.0,15.763,15.755,2.602]
[1673535302691,47.57,15.768,15.755,2.602]
[1673535302926,47.57,15.769,15.755,2.602]
[1673535303120,20.0,15.768,15.755,2.602]
[1673535303325,47.58,15.767,15.755,2.602]
[1673535304074,19.14496728,15.766,15.74,119.1726]
[1673535304266,22.87,15.76,15.74,119.1726]
[1673535304499,67.6,15.759,15.73,19.5]
[1673535304833,86.74496728,15.759,15.734,108.0309]
[1673535305037,17.0,15.758,15.734,108.0309]
[1673535305252,47.61,15.757,15.735,20.0]
[1673535305439,17.0,15.756,15.736,117.4159]
[1673535305655,17.0,15.756,15.72,222.8327]
[1673535305656,47.61,15.755,15.728,117.4159]
[1673535305891,17.0,15.754,15.728,117.4159]
[1673535306077,47.62,15.753,15.728,117.4159]
[1673535306289,17.0,15.752,15.729,20.0]
[1673535306501,47.62,15.751,15.729,20.0]
[1673535306829,17.0,15.75,15.729,20.0]
[1673535307045,47.63,15.749,15.728,117.4159]
[1673535307251,17.0,15.748,15.728,117.4159]
[1673535307459,47.64,15.747,15.728,117.4159]
[1673535307656,17.0,15.746,15.729,20.0]
[1673535308388,17.0,15.746,15.728,117.4159]
[1673535308593,47.64,15.745,15.721,108.0116]
[1673535308804,17.0,15.744,15.721,108.0116]
[1673535309142,47.65,15.743,15.721,108.0116]
[1673535309342,17.0,15.742,15.722,20.0]
[1673535309548,47.63,15.749,15.722,20.0]
[1673535309768,47.63,15.749,15.723,7.02513]
[1673535309983,22.66,15.75,15.723,7.02513]
[1673535310178,47.6,15.759,15.73,22.87]
[1673535310399,47.58,15.767,15.731,121.32096]
[1673535310604,19.14496728,15.765,15.732,27.02111]
[1673535310920,47.58,15.764,15.732,31.83759175]
[1673535311242,19.14496728,15.766,15.733,24.02067]
[1673535311458,22.85,15.76,15.734,40.0]
[1673535311644,47.6,15.759,15.734,40.0]
[1673535311856,47.6,15.759,15.734,20.0]
[1673535312066,66.74496728,15.759,15.732,20.0]
[1673535312293,22.85,15.76,15.735,20.0]
[1673535312596,47.58,15.765,15.736,20.0]
[1673535312803,19.14496728,15.763,15.737,7.01888]
[1673535313020,47.59,15.762,15.738,20.0]
[1673535313226,47.57,15.769,15.74,20.0]
[1673535313437,47.57,15.769,15.741,17.0]
[1673535313657,47.57,15.769,15.742,20.0]
[1673535313887,47.56,15.773,15.743,24.01621]
[1673535314087,19.14496728,15.77,15.744,20.0]
[1673535314279,19.14496728,15.77,15.744,152.5127]
[1673535314494,29.83253109,15.768,15.744,40.0]
[1673535314819,29.83253109,15.768,15.743,76.92004603]
[1673535314820,29.83253109,15.765,15.743,76.92004603]
[1673535315028,47.08,15.764,15.743,76.92004603]
[1673535315343,20.0,15.763,15.743,76.92004603]
[1673535315547,22.7,15.76,15.743,76.92004603]
[1673535315761,47.6,15.759,15.743,76.92004603]
[1673535315977,17.0,15.758,15.743,76.92004603]
[1673535316398,17.0,15.759,15.737,20.0]
[1673535316709,17.0,15.759,15.731,20.0]
[1673535316710,83.74496728,15.759,15.731,20.0]
[1673535316895,83.74496728,15.759,15.737,20.0]
[1673535317339,20.0,15.758,15.732,20.0]
[1673535317524,20.0,15.756,15.732,20.0]
[1673535317745,20.0,15.756,15.731,20.0]
[1673535317746,47.61,15.755,15.731,20.0]
[1673535317966,83.75496728,15.755,15.731,20.0]
[1673535318390,22.66,15.75,15.721,20.0]
[1673535318593,47.63,15.749,15.721,20.0]
[1673535318913,47.63,15.749,15.721,47.0314797]
[1673535319229,20.0,15.756,15.729,20.0]
[1673535319430,20.0,15.756,15.721,47.0314797]
[1673535319431,22.86,15.75,15.721,20.0]
[1673535319648,47.63,15.749,15.721,20.0]
[1673535319967,17.0,15.748,15.728,112.0127]
[1673535320158,47.64,15.747,15.728,112.0127]
[1673535320370,17.0,15.746,15.728,112.0127]
[1673535320586,47.63,15.749,15.728,112.0127]
[1673535320798,22.86,15.75,15.728,112.0127]
[1673535320999,19.14496728,15.755,15.728,112.0127]
[1673535321207,22.8,15.75,15.73,20.0]
[1673535321535,47.63,15.749,15.731,20.0]
[1673535321851,17.0,15.748,15.731,20.0]
[1673535322046,47.64,15.747,15.731,20.0]
[1673535322257,22.93,15.75,15.732,20.0]
[1673535322468,22.93,15.75,15.732,62.35176098]
[1673535322679,22.93,15.75,15.733,20.0]
[1673535322887,47.63,15.749,15.733,20.0]
[1673535323104,47.63,15.749,15.731,20.0]
[1673535323529,17.0,15.748,15.731,20.0]
[1673535323723,47.64,15.747,15.731,20.0]
[1673535324152,22.72,15.75,15.732,20.0]
[1673535324363,47.6,15.759,15.732,20.0]
[1673535324988,66.74496728,15.759,15.732,20.0]
[1673535325211,22.83,15.75,15.733,111.7075]
[1673535325427,22.83,15.75,15.734,20.0]
[1673535326169,47.63,15.749,15.733,111.7075]
[1673535327112,114.56,15.75,15.734,20.0]
[1673535327424,22.97,15.75,15.734,20.0]
[1673535327844,22.82,15.75,15.734,20.0]
[1673535328252,17.0,15.749,15.734,20.0]
[1673535328665,22.82,15.75,15.734,20.0]
[1673535328896,17.0,15.749,15.734,20.0]
[1673535329110,17.0,15.749,15.735,20.0]
[1673535329944,22.82,15.75,15.735,20.0]
[1673535330159,22.82,15.75,15.736,20.0]
[1673535331322,17.0,15.749,15.736,20.0]
[1673535331872,22.82,15.75,15.736,20.0]
[1673535332988,47.6,15.757,15.736,20.0]
[1673535333203,23.11,15.76,15.737,20.0]
[1673535333415,23.11,15.76,15.738,20.0]
[1673535333618,23.11,15.76,15.739,27.01799]
[1673535334062,23.11,15.76,15.74,20.0]
[1673535334256,23.11,15.76,15.741,20.0]
[1673535334899,23.11,15.76,15.742,17.0]
[1673535335101,23.11,15.76,15.743,40.0]
[1673535335737,23.11,15.76,15.744,17.0]